lending/lending_fUSD_20251018
["ID","MTS","AMOUNT","RATE_DAILY","PERIOD"]
[391739058,1760764246014,-914.53296123,0.00033319,30]
[391739059,1760764246023,-1107.09230492,0.00033568,2]
[391739060,1760764246035,-1482.90769508,0.00033568,2]
[391739062,1760764246045,-557.0,0.00033568,2]
[391739063,1760764246054,-2377.64208691,0.00033688,2]
[391739064,1760764246065,-168.35791309,0.00033688,2]
[391739066,1760764246075,-151.0,0.000337,120]
[391739067,1760764246085,-153.0,0.00033743,2]
[391739068,1760764246094,-153.0,0.00033743,2]
[391739069,1760764246103,-153.0,0.00033743,2]
[391739070,1760764246113,-153.0,0.00033743,2]
[391739071,1760764246123,-153.0,0.00033743,2]
[391739072,1760764246132,-166.36,0.00034627,2]
[391739073,1760764246142,-1267.0,0.00034745,2]
[391739074,1760764246156,-750.0,0.00034745,2]
[391739075,1760764246165,-3408.0,0.00034745,2]
[391739076,1760764246174,-2050.0,0.00034745,2]
[391739077,1760764246183,-101.1166773,0.00034745,2]
[391739260,1760764263752,300.0,0.00025581,120]
[391739261,1760764263874,300.0,0.00026992,120]
[391739262,1760764264844,195.0,0.00025581,120]
[391739271,1760764266276,2500.0,0.00025581,120]
[391739272,1760764266384,2500.0,0.00025968,120]
[391739727,1760765108660,91975.62573817,0.00015,2]
[391739729,1760765112600,-162.91502464,0.00015,2]
[391739731,1760765117912,-181.50574411,0.00015,2]
[391739732,1760765119384,-186.79073016,0.00015,2]
[391739733,1760765121397,-225.62852009,0.00015,2]
[391739734,1760765124322,-243.46012301,0.00015,2]
[391739736,1760765127984,-257.52502837,0.00015,2]
[391739739,1760765132395,-414.2885262,0.00015,2]
[391739741,1760765136097,-188.02723109,0.00015,2]
[391739743,1760765141111,-188.28045508,0.00015,2]
[391739755,1760765158648,-257.18777651,0.00015,2]
[391739756,1760765162597,-410.40677693,0.00015,2]
[391739758,1760765164174,-242.21084912,0.00015,2]
[391739761,1760765166689,-1134.28260132,0.00015,2]
[391739762,1760765168672,-211.23171946,0.00015,2]
[391739764,1760765170374,-152.52281191,0.00015,2]
[391739766,1760765187500,-777.05696946,0.00015,2]
[391739767,1760765191698,-195.0,0.00015,2]
[391739769,1760765194217,-156.587,0.00014999,2]
[391739771,1760765196775,-169.44565657,0.00014999,2]
[391739772,1760765196804,-24.48894817,0.00014999,2]
[391739773,1760765199994,-168.0,0.00014999,2]
[391739784,1760765218030,-38.90766733,0.00014999,2]
[391739785,1760765218061,-234.1188009,0.00014999,2]
[391739788,1760765221053,-258.3174496,0.00014999,2]
[391739796,1760765222775,-7.5637495,0.00014999,2]
[391739797,1760765222799,-161.99279905,0.00014999,2]
[391739798,1760765224271,-367.25394461,0.00014999,2]
[391739799,1760765224296,-500.0,0.00014999,2]
[391739800,1760765224329,-334.74605539,0.00014999,2]
[391739802,1760765226246,-165.25394461,0.00014999,2]
[391739803,1760765226272,-26.77605539,0.00014999,2]
[391739814,1760765228717,-308.24978569,0.00014999,2]
[391739815,1760765232471,-79.01727555,0.00014999,2]
[391739816,1760765232495,-207.85217962,0.00014999,5]
[391739829,1760765236050,-266.11416166,0.00014999,5]
[391739830,1760765237545,-249.54352193,0.00014999,5]
[391739831,1760765239604,-217.69290951,0.00014999,5]
[391739844,1760765243864,-349.90434703,0.00014999,5]
[391739845,1760765245677,-216.50474336,0.00014999,5]
[391739850,1760765247163,-111.53244731,0.00014999,5]
[391739851,1760765247188,-161.97763084,0.00014999,2]
[391739852,1760765247210,-150.0,0.00014999,2]
[391739853,1760765247235,-196.90486282,0.00015,2]
[391739856,1760765249381,-313.90288985,0.00015,2]
[391739860,1760765252664,-300.0,0.00015,2]
[391739861,1760765255081,-152.75,0.00015,2]
[391739862,1760765258919,-350.0792112,0.00015,2]
[391739864,1760765260904,-308.84395509,0.00015,2]
[391739871,1760765262361,-322.96627922,0.00015,2]
[391739873,1760765263941,-195.0,0.00015,2]
[391739938,1760765409000,-4913.15,0.0001499,2]
[391739939,1760765409037,-4913.15,0.0001499,2]
[391739940,1760765409074,-154.8346676,0.00014999,2]
[391739941,1760765409110,-300.0,0.00014999,2]
[391739942,1760765409153,-1200.0,0.00014999,2]
[391739943,1760765409192,-150.0,0.00014999,2]
[391739944,1760765409232,-11021.30379052,0.00015,2]
[391739945,1760765409245,-435.68171857,0.00015,2]
[391739946,1760765409261,-435.68171857,0.00015,2]
[391739947,1760765409272,-154.8346676,0.00015,2]
[391739948,1760765409284,-300.0,0.00015,2]
[391739949,1760765409296,-435.68171857,0.00015,2]
[391739950,1760765409307,-150.0,0.00015,2]
[391739951,1760765409319,-435.68171857,0.00015,2]
[391739954,1760765427528,-176.51023443,0.0001499,2]
[391739961,1760765431836,-28.33877916,0.0001499,2]
[391739962,1760765431847,-3669.93036148,0.00015,2]
[391739963,1760765432009,-96711.69790761,0.00015,2]
[391739985,1760765438113,-500.0,0.00014999,2]
[391739986,1760765438124,-354.4540703,0.00014999,2]
[391739987,1760765438133,-19112.66109399,0.00015,2]
[391739988,1760765438144,-2744.77067992,0.00015,2]
[391739992,1760765439987,-5905.75727259,0.00015,2]
[391739993,1760765440046,-81680.52242846,0.00015,2]
[391739994,1760765440528,-1.6e-07,0.00015,2]
[391739995,1760765440539,-1121260.95290599,0.00015,2]
[391739996,1760765440549,-500.0,0.00015,2]
[391739997,1760765440562,-255.0,0.00016124,2]
[391739998,1760765440747,-476.66649144,0.000162,2]
[391739999,1760765440759,-160.77807033,0.000163,2]
[391740000,1760765440769,-7026.71724101,0.000164,2]
[391740001,1760765440779,-420.0,0.00016416,2]
[391740002,1760765440788,-637.34393449,0.00016438,2]
[391740003,1760765440797,-500.0,0.00016438,2]
[391740004,1760765440810,-302.47315593,0.00016499,2]
[391740005,1760765440820,-2500.0,0.00016499,2]
[391740006,1760765440830,-300.0,0.00016499,2]
[391740007,1760765440839,-568.0059748,0.00016499,3]
[391740008,1760765440849,-195.0,0.00016499,2]
[391740009,1760765440858,-1680.0,0.00016499,2]
[391740010,1760765440868,-300.0,0.000165,2]
[391740011,1760765440877,-490.59621237,0.000165,2]
[391740012,1760765440887,-257.18777651,0.000165,2]
[391740013,1760765440899,-195.0,0.000165,2]
[391740014,1760765440909,-250.0,0.00017,2]
[391740015,1760765440919,-236.66041379,0.0001725,7]
[391740016,1760765440928,-433.0,0.00017339,2]
[391740017,1760765440937,-1000.0,0.00017534,2]
[391740018,1760765440947,-587.0,0.00017966,2]
[391740019,1760765440962,-2351.0,0.00018149,2]
[391740020,1760765440971,-736.0,0.00018629,2]
[391740021,1760765440980,-501.52187375,0.0001863,2]
[391740022,1760765440990,-150.14,0.000188,2]
[391740023,1760765440999,-150.14,0.000188,2]
[391740024,1760765441009,-150.14,0.000188,2]
[391740025,1760765441020,-150.14,0.000188,2]
[391740026,1760765441029,-7026.71724101,0.00018878,2]
[391740027,1760765441039,-320.20675479,0.00019,2]
[391740028,1760765441049,-234.0,0.00019663,2]
[391740029,1760765441058,-3292.0,0.00019964,2]
[391740030,1760765441067,-150.14,0.0001999,2]
[391740032,1760765441080,-150.14,0.0001999,2]
[391740033,1760765441090,-300.0,0.00019999,2]
[391740034,1760765441101,-1032.6737801,0.0002,2]
[391740035,1760765441111,-2829.81963191,0.0002,2]
[391740036,1760765441122,-3199.97702198,0.0002,2]
[391740037,1760765441132,-75046.58563361,0.0002,2]
[391740038,1760765441142,-8705.2216115,0.0002,2]
[391740039,1760765441154,-1178.0,0.00020024,2]
[391740041,1760765441163,-3000.0,0.000205,2]
[391740042,1760765441173,-475.74147678,0.00020596,2]
[391740043,1760765441182,-213.98510695,0.000206,2]
[391740044,1760765441192,-213.98510695,0.000208,2]
[391740045,1760765441202,-250.45610049,0.00021,2]
[391740046,1760765441211,-213.98510695,0.00021,2]
[391740047,1760765441222,-213.98510695,0.000212,2]
[391740048,1760765441231,-7026.71724101,0.00021356,2]
[391740049,1760765441241,-166.66,0.00021381,2]
[391740050,1760765441251,-213.98510695,0.000214,2]
[391740051,1760765441260,-480.0,0.0002196,2]
[391740052,1760765441270,-166.66,0.00022087,2]
[391740053,1760765441279,-166.66,0.00022793,2]
[391740054,1760765441289,-166.66,0.00023499,2]
[391740055,1760765441300,-7026.71724101,0.00023833,2]
[391740056,1760765441309,-14452.60203639,0.00024,2]
[391740057,1760765441319,-500.0,0.0002405,2]
[391740058,1760765441328,-500.0,0.0002405,2]
[391740059,1760765441338,-508.73606223,0.00024157,2]
[391740060,1760765441347,-502.64862122,0.00024157,2]
[391740061,1760765441356,-166.66,0.00024204,2]
[391740062,1760765441365,-1000.0,0.00024598,2]
[391740063,1760765441375,-1000.0,0.00024598,2]
[391740064,1760765441384,-150.14,0.0002479,2]
[391740065,1760765441393,-150.14,0.0002479,2]
[391740066,1760765441402,-150.14,0.0002479,2]
[391740067,1760765441412,-150.14,0.0002479,2]
[391740068,1760765441421,-150.14,0.0002479,2]
[391740069,1760765441430,-150.14,0.0002479,2]
[391740070,1760765441440,-300.0,0.00024799,10]
[391740071,1760765441449,-282796.537661,0.000248,2]
[391740072,1760765441458,-150.14,0.0002489,2]
[391740073,1760765441468,-150.14,0.0002489,2]
[391740074,1760765441478,-150.14,0.0002489,2]
[391740075,1760765441487,-150.14,0.0002489,2]
[391740076,1760765441497,-150.14,0.0002489,2]
[391740077,1760765441506,-150.14,0.0002489,2]
[391740078,1760765441515,-300.0,0.00024899,10]
[391740079,1760765441525,-257464.86198,0.000249,2]
[391740080,1760765441534,-151.0,0.000249,7]
[391740081,1760765441544,-151.0,0.000249,7]
[391740082,1760765441553,-151.0,0.000249,7]
[391740083,1760765441562,-151.169101,0.000249,7]
[391740084,1760765441571,-239.862636,0.000249,7]
[391740085,1760765441580,-151.0,0.000249,7]
[391740086,1760765441590,-151.0,0.000249,7]
[391740087,1760765441599,-405.561344,0.000249,7]
[391740088,1760765441608,-405.561344,0.000249,7]
[391740089,1760765441618,-680.957769,0.000249,7]
[391740090,1760765441627,-405.561344,0.000249,7]
[391740091,1760765441636,-680.957769,0.000249,7]
[391740092,1760765441646,-405.561344,0.000249,7]
[391740093,1760765441656,-680.957769,0.000249,7]
[391740094,1760765441665,-680.957769,0.000249,7]
[391740095,1760765441674,-151.0,0.000249,7]
[391740096,1760765441684,-151.0,0.000249,7]
[391740097,1760765441694,-151.0,0.000249,7]
[391740098,1760765441703,-708.069192,0.000249,7]
[391740099,1760765441712,-151.0,0.000249,7]
[391740100,1760765441722,-151.0,0.000249,7]
[391740101,1760765441731,-708.069192,0.000249,7]
[391740102,1760765441740,-991.253269,0.000249,7]
[391740103,1760765441750,-151.0,0.000249,7]
[391740104,1760765441760,-151.0,0.000249,7]
[391740105,1760765441768,-991.253269,0.000249,7]
[391740106,1760765441778,-708.069192,0.000249,7]
[391740107,1760765441788,-708.069192,0.000249,7]
[391740108,1760765441797,-991.253269,0.000249,7]
[391740109,1760765441809,-991.253269,0.000249,7]
[391740110,1760765441818,-151.379112,0.000249,7]
[391740111,1760765441828,-275.636786,0.000249,7]
[391740112,1760765441837,-275.636786,0.000249,7]
[391740113,1760765441846,-151.0,0.000249,7]
[391740114,1760765441857,-151.0,0.000249,7]
[391740115,1760765441866,-151.0,0.000249,7]
[391740116,1760765441875,-275.636786,0.000249,7]
[391740117,1760765441887,-151.0,0.000249,7]
[391740118,1760765441896,-151.0,0.000249,7]
[391740119,1760765441905,-151.0,0.000249,7]
[391740120,1760765441914,-275.636786,0.000249,7]
[391740121,1760765441923,-1053.328385,0.000249,7]
[391740122,1760765441932,-151.0,0.000249,7]
[391740123,1760765441941,-1053.328385,0.000249,7]
[391740124,1760765441950,-436.536532,0.000249,7]
[391740125,1760765441959,-151.0,0.000249,7]
[391740126,1760765441968,-1053.328385,0.000249,7]
[391740127,1760765441977,-436.536532,0.000249,7]
[391740128,1760765441987,-1053.328385,0.000249,7]
[391740129,1760765441996,-436.536532,0.000249,7]
[391740130,1760765442005,-436.536532,0.000249,7]
[391740131,1760765442015,-151.0,0.000249,7]
[391740132,1760765442024,-151.0,0.000249,7]
[391740133,1760765442033,-475.74147678,0.000249,7]
[391740134,1760765442042,-272.738426,0.000249,7]
[391740135,1760765442051,-151.0,0.000249,7]
[391740136,1760765442061,-151.0,0.000249,7]
[391740137,1760765442070,-151.0,0.000249,7]
[391740138,1760765442079,-611.926629,0.000249,7]
[391740139,1760765442088,-151.0,0.000249,7]
[391740140,1760765442098,-611.926629,0.000249,7]
[391740141,1760765442107,-151.0,0.000249,7]
[391740142,1760765442116,-611.926629,0.000249,7]
[391740143,1760765442126,-611.926629,0.000249,7]
[391740144,1760765442135,-190.460139,0.000249,7]
[391740145,1760765442143,-190.460139,0.000249,7]
[391740146,1760765442152,-2095.779466,0.000249,7]
[391740147,1760765442162,-190.460139,0.000249,7]
[391740148,1760765442171,-151.0,0.000249,7]
[391740149,1760765442179,-2095.779466,0.000249,7]
[391740150,1760765442188,-151.0,0.000249,7]
[391740151,1760765442197,-190.460139,0.000249,7]
[391740152,1760765442206,-261.155936,0.000249,7]
[391740153,1760765442215,-2095.779466,0.000249,7]
[391740154,1760765442224,-2095.779466,0.000249,7]
[391740155,1760765442233,-151.0,0.000249,7]
[391740156,1760765442242,-151.0,0.000249,7]
[391740157,1760765442251,-151.0,0.000249,7]
[391740158,1760765442260,-151.0,0.000249,7]
[391740159,1760765442269,-4217.018764,0.000249,7]
[391740160,1760765442278,-151.0,0.000249,7]
[391740161,1760765442287,-151.0,0.000249,7]
[391740162,1760765442295,-174.102871,0.000249,7]
[391740163,1760765442304,-4217.018764,0.000249,7]
[391740164,1760765442313,-151.0,0.000249,7]
[391740165,1760765442322,-224.406032,0.000249,7]
[391740166,1760765442331,-174.102871,0.000249,7]
[391740167,1760765442339,-151.0,0.000249,7]
[391740168,1760765442348,-4217.018764,0.000249,7]
[391740169,1760765442357,-151.492516,0.000249,7]
[391740170,1760765442366,-224.406032,0.000249,7]
[391740171,1760765442375,-174.102871,0.000249,7]
[391740172,1760765442384,-151.0,0.000249,7]
[391740173,1760765442393,-151.0,0.000249,7]
[391740174,1760765442403,-4217.018764,0.000249,7]
[391740175,1760765442412,-224.406032,0.000249,7]
[391740176,1760765442429,-174.102871,0.000249,7]
[391740177,1760765442440,-151.0,0.000249,7]
[391740178,1760765442449,-151.0,0.000249,7]
[391740179,1760765442458,-224.406032,0.000249,7]
[391740180,1760765442467,-151.0,0.000249,7]
[391740181,1760765442476,-151.0,0.000249,7]
[391740182,1760765442485,-151.0,0.000249,7]
[391740183,1760765442495,-694.061298,0.000249,7]
[391740184,1760765442504,-151.0,0.000249,7]
[391740185,1760765442513,-151.0,0.000249,7]
[391740186,1760765442522,-694.061298,0.000249,7]
[391740187,1760765442531,-151.0,0.000249,7]
[391740188,1760765442541,-166.66,0.0002491,2]
[391740189,1760765442550,-1500.0,0.00025146,2]
[391740190,1760765442559,-1500.0,0.00025146,2]
[391740191,1760765442569,-1000.0,0.00025227,2]
[391740192,1760765442578,-2000.0,0.00025694,2]
[391740194,1760765442588,-2000.0,0.00025694,2]
[391740196,1760765442597,-3000.0,0.00026,2]
[391740198,1760765442608,-1000.0,0.00026173,2]
[391740200,1760765442617,-2000.0,0.00026242,2]
[391740202,1760765442627,-2500.0,0.00026242,2]
[391740204,1760765442637,-7026.71724101,0.00026311,2]
[391740206,1760765442647,-1505.09838233,0.0002679,2]
[391740208,1760765442656,-504.58952718,0.00026873,2]
[391740210,1760765442666,-503.29903749,0.00026873,2]
[391740212,1760765442675,-150.14,0.0002689,2]
[391740215,1760765442685,-150.14,0.0002689,2]
[391740217,1760765442695,-300.0,0.00026899,10]
[391740218,1760765442704,-107155.69912385,0.000269,2]
[391740219,1760765442714,-150.14,0.0002699,2]
[391740220,1760765442725,-250.0,0.00027,2]
[391740221,1760765442734,-21066.81755415,0.00027,2]
[391740222,1760765442744,-1017.61452637,0.00027,2]
[391740223,1760765442753,-4194.92464401,0.00027,2]
[391740224,1760765442762,-530.0,0.00027,2]
[391740225,1760765442772,-1000.0,0.00027119,2]
[391740226,1760765442782,-1000.0,0.00028065,2]
[391740227,1760765442792,-190.460139,0.00028065,30]
[391740228,1760765442801,-190.460139,0.00028065,30]
[391740229,1760765442814,-2095.779466,0.00028065,30]
[391740230,1760765442823,-190.460139,0.00028065,30]
[391740231,1760765442833,-2095.779466,0.00028065,30]
[391740232,1760765442842,-151.0,0.00028065,30]
[391740233,1760765442852,-190.460139,0.00028065,30]
[391740234,1760765442861,-2095.779466,0.00028065,30]
[391740235,1760765442870,-2095.779466,0.00028065,30]
[391740236,1760765442880,-151.0,0.00028065,30]
[391740237,1760765442890,-151.0,0.00028065,30]
[391740238,1760765442899,-151.0,0.00028065,30]
[391740239,1760765442908,-4217.018764,0.00028065,30]
[391740240,1760765442917,-151.0,0.00028065,30]
[391740241,1760765442926,-151.0,0.00028065,30]
[391740242,1760765442936,-151.0,0.00028065,30]
[391740243,1760765442945,-174.102871,0.00028065,30]
[391740244,1760765442954,-4217.018764,0.00028065,30]
[391740245,1760765442963,-151.0,0.00028065,30]
[391740246,1760765442972,-224.406032,0.00028065,30]
[391740247,1760765442981,-174.102871,0.00028065,30]
[391740248,1760765442990,-151.0,0.00028065,30]
[391740249,1760765443000,-4217.018764,0.00028065,30]
[391740250,1760765443009,-224.406032,0.00028065,30]
[391740251,1760765443018,-174.102871,0.00028065,30]
[391740252,1760765443027,-153.782234,0.00028065,30]
[391740253,1760765443037,-151.0,0.00028065,30]
[391740254,1760765443047,-4217.018764,0.00028065,30]
[391740255,1760765443056,-224.406032,0.00028065,30]
[391740256,1760765443066,-174.102871,0.00028065,30]
[391740257,1760765443075,-292.436263,0.00028065,30]
[391740258,1760765443084,-224.406032,0.00028065,30]
[391740259,1760765443094,-151.0,0.00028065,30]
[391740260,1760765443103,-694.061298,0.00028065,30]
[391740261,1760765443113,-151.0,0.00028065,30]
[391740262,1760765443123,-357.94,0.000281,7]
[391740263,1760765443132,-1211.91,0.00028539,2]
[391740264,1760765443142,-299.76,0.000286,2]
[391740265,1760765443152,-7026.71724101,0.00028789,2]
[391740266,1760765443161,-500.0,0.000288,5]
[391740267,1760765443171,-500.0,0.000288,5]
[391740268,1760765443180,-509.79133422,0.000288,5]
[391740269,1760765443190,-500.0,0.000288,5]
[391740270,1760765443199,-500.0,0.000288,5]
[391740271,1760765443208,-500.3887811,0.000288,5]
[391740273,1760765443218,-500.0,0.000288,5]
[391740274,1760765443227,-500.0,0.000288,5]
[391740275,1760765443236,-500.0,0.00028863,5]
[391740276,1760765443246,-500.0,0.00028863,5]
[391740278,1760765443255,-500.0,0.00028863,5]
[391740279,1760765443265,-500.0,0.00028863,5]
[391740280,1760765443274,-500.0,0.00028863,5]
[391740281,1760765443284,-500.0,0.00028863,5]
[391740282,1760765443293,-150.14,0.00028878,2]
[391740283,1760765443303,-16506.76286703,0.00028888,2]
[391740284,1760765443312,-156.415448,0.00028888,30]
[391740285,1760765443322,-151.0,0.00028888,30]
[391740286,1760765443335,-151.0,0.00028888,30]
[391740287,1760765443344,-151.0,0.00028888,30]
[391740288,1760765443353,-153.428085,0.00028888,30]
[391740289,1760765443363,-405.561344,0.00028888,30]
[391740290,1760765443373,-405.561344,0.00028888,30]
[391740291,1760765443386,-680.957769,0.00028888,30]
[391740292,1760765443395,-405.561344,0.00028888,30]
[391740293,1760765443404,-680.957769,0.00028888,30]
[391740294,1760765443414,-405.561344,0.00028888,30]
[391740295,1760765443423,-680.957769,0.00028888,30]
[391740296,1760765443433,-680.957769,0.00028888,30]
[391740297,1760765443443,-151.0,0.00028888,30]
[391740298,1760765443453,-151.0,0.00028888,30]
[391740299,1760765443462,-708.069192,0.00028888,30]
[391740300,1760765443471,-151.0,0.00028888,30]
[391740301,1760765443480,-708.069192,0.00028888,30]
[391740302,1760765443490,-151.0,0.00028888,30]
[391740303,1760765443499,-991.253269,0.00028888,30]
[391740304,1760765443509,-151.0,0.00028888,30]
[391740305,1760765443519,-708.069192,0.00028888,30]
[391740306,1760765443528,-151.0,0.00028888,30]
[391740307,1760765443537,-991.253269,0.00028888,30]
[391740308,1760765443547,-708.069192,0.00028888,30]
[391740309,1760765443556,-991.253269,0.00028888,30]
[391740310,1760765443565,-991.253269,0.00028888,30]
[391740311,1760765443575,-275.636786,0.00028888,30]
[391740312,1760765443584,-275.636786,0.00028888,30]
[391740313,1760765443594,-151.0,0.00028888,30]
[391740314,1760765443603,-151.0,0.00028888,30]
[391740315,1760765443613,-151.0,0.00028888,30]
[391740316,1760765443623,-275.636786,0.00028888,30]
[391740317,1760765443632,-226.831342,0.00028888,30]
[391740318,1760765443642,-151.0,0.00028888,30]
[391740319,1760765443651,-151.0,0.00028888,30]
[391740320,1760765443660,-275.636786,0.00028888,30]
[391740321,1760765443670,-1053.328385,0.00028888,30]
[391740322,1760765443680,-153.00822,0.00028888,30]
[391740323,1760765443689,-1053.328385,0.00028888,30]
[391740324,1760765443699,-436.536532,0.00028888,30]
[391740325,1760765443709,-151.0,0.00028888,30]
[391740326,1760765443718,-1053.328385,0.00028888,30]
[391740327,1760765443728,-436.536532,0.00028888,30]
[391740328,1760765443737,-1053.328385,0.00028888,30]
[391740329,1760765443747,-436.536532,0.00028888,30]
[391740330,1760765443756,-436.536532,0.00028888,30]
[391740331,1760765443766,-151.0,0.00028888,30]
[391740332,1760765443776,-151.0,0.00028888,30]
[391740333,1760765443785,-151.0,0.00028888,30]
[391740334,1760765443794,-151.0,0.00028888,30]
[391740335,1760765443805,-611.926629,0.00028888,30]
[391740336,1760765443818,-151.0,0.00028888,30]
[391740337,1760765443828,-611.926629,0.00028888,30]
[391740338,1760765443837,-611.926629,0.00028888,30]
[391740339,1760765443847,-611.926629,0.00028888,30]
[391740340,1760765443858,-151.0,0.00028888,30]
[391740341,1760765443868,-1000.42768112,0.00029,2]
[391740342,1760765443878,-1000.0,0.00029011,2]
[391740343,1760765443888,-1000.9388026,0.00029348,5]
[391740344,1760765443898,-1000.0,0.00029348,5]
[391740345,1760765443909,-1030.89090806,0.00029348,5]
[391740346,1760765443921,-1000.0,0.00029348,5]
[391740347,1760765443931,-349.14775725,0.00029348,5]
[391740348,1760765443941,-1000.0,0.0002941,5]
[391740349,1760765443950,-500.0,0.0002941,5]
[391740350,1760765443960,-1000.0,0.0002941,5]
[391740351,1760765443970,-500.0,0.0002941,5]
[391740352,1760765443980,-500.0,0.0002941,5]
[391740353,1760765443996,-500.0,0.0002941,5]
[391740354,1760765444017,-3000.0,0.000295,2]
[391740355,1760765444034,-500.0,0.00029896,5]
[391740356,1760765444045,-644.31273449,0.00029896,5]
[391740357,1760765444056,-500.0,0.00029958,5]
[391740358,1760765444066,-1500.0,0.00029958,5]
[391740359,1760765444077,-2001.24539177,0.0003,2]
[391740360,1760765444088,-153.0,0.00030697,2]
[391740361,1760765444097,-153.0,0.00030697,2]
[391740362,1760765444107,-153.0,0.00030697,2]
[391740363,1760765444118,-153.0,0.00030697,2]
[391740364,1760765444130,-153.0,0.00030697,2]
[391740365,1760765444141,-153.0,0.00030697,2]
[391740366,1760765444152,-153.0,0.00030697,2]
[391740367,1760765444163,-153.0,0.00030697,2]
[391740368,1760765444175,-153.0,0.00030697,2]
[391740369,1760765444186,-153.0,0.00030697,2]
[391740370,1760765444196,-153.0,0.00030697,2]
[391740371,1760765444205,-153.0,0.00030697,2]
[391740372,1760765444215,-153.0,0.00030697,2]
[391740373,1760765444224,-153.0,0.00030697,2]
[391740374,1760765444233,-644.54496252,0.00031,120]
[391740375,1760765444242,-154.0,0.00031,120]
[391740376,1760765444251,-156.0,0.00031,120]
[391740377,1760765444260,-1000.0,0.00031102,4]
[391740378,1760765444270,-500.0,0.00031233,2]
[391740379,1760765444279,-7026.71724101,0.00031267,2]
[391740380,1760765444290,-150.14,0.0003142,2]
[391740381,1760765444300,-11951.22454641,0.0003143,4]
[391740382,1760765444309,-666.0,0.00031655,3]
[391740383,1760765444318,-465.46467,0.00032,2]
[391740384,1760765444327,-357.94,0.00032,30]
[391740385,1760765444337,-390.296706,0.00032155,7]
[391740386,1760765444347,-1000.0,0.00032155,30]
[391740387,1760765444356,-154.0,0.000324,120]
[391740388,1760765444366,-32368.50246934,0.00032748,5]
[391740389,1760765444375,-883.412,0.000333,35]
[391740390,1760765444384,-156.0,0.000333,120]
[391740391,1760765444393,-151.0,0.00033318,30]
[391740392,1760765444403,-203.53097494,0.00033318,30]
[391740393,1760765444412,-202.4534547,0.00033365,2]
[391740394,1760765444421,-600.0,0.00033365,2]
[391740395,1760765444431,-500.0,0.00033365,2]
[391740396,1760765444440,-312.24688959,0.00033365,2]
[391740397,1760765444450,-204.5796415,0.00033365,2]
[391740398,1760765444459,-151.0,0.00033365,2]
[391740399,1760765444468,-151.0,0.00033365,2]
[391740400,1760765444477,-151.0,0.00033365,2]
[391740401,1760765444487,-151.0,0.00033365,2]
[391740402,1760765444496,-151.0,0.00033365,2]
[391740403,1760765444506,-151.0,0.00033365,2]
[391740404,1760765444515,-151.0,0.00033365,2]
[391740405,1760765444525,-201.86515649,0.00033365,2]
[391740406,1760765444693,-150.14,0.00033375,2]
[391740407,1760765444705,-150.14,0.00033375,2]
[391740408,1760765444716,-31984.9493521,0.00033385,2]
[391740409,1760765444726,-151.0945164,0.00033385,2]
[391740410,1760765444736,-6904.661177,0.00033385,2]
[391740411,1760765444746,-998.9822381,0.00033385,2]
[391740412,1760765444755,-25327.3479988,0.00033385,2]